fUST/lending_fUST_20240505
["ID","MTS","AMOUNT","RATE_DAILY","PERIOD"]
[325433906,1714884449491,-5588.62,0.00021917,2]
[325433907,1714884449516,-500.0,0.00021917,2]
[325433908,1714884449545,-490.66999435,0.00021917,2]
[325433909,1714884449571,-500.0,0.00021917,2]
[325433910,1714884449598,-732.16,0.00021917,2]
[325433911,1714884449625,-500.0,0.00021917,2]
[325433912,1714884449651,-500.0,0.00021917,2]
[325433913,1714884449677,-500.0,0.00021917,2]
[325433914,1714884449702,-500.0,0.00021917,2]
[325433915,1714884449728,-500.0,0.00021917,2]
[325433916,1714884449758,-500.0,0.00021917,2]
[325433917,1714884449784,-268.55685586,0.00021917,2]
[325433918,1714884449810,-500.0,0.00021917,2]
[325433919,1714884449838,-2612.29,0.00021917,2]
[325433920,1714884449863,-502.72861469,0.00021917,2]
[325433921,1714884449889,-500.0,0.00021917,2]
[325433922,1714884449916,-1891.92,0.00021917,2]
[325433923,1714884449944,-500.0,0.00021917,2]
[325433924,1714884449971,-190.27867122,0.00021917,2]
[325433925,1714884449997,-501.78901049,0.00021917,2]
[325433926,1714884450024,-500.0,0.00021917,2]
[325433927,1714884450051,-500.0,0.00021917,2]
[325433928,1714884450078,-500.0,0.00021917,2]
[325433929,1714884450105,-500.0,0.00021917,2]
[325433930,1714884450132,-2793.88,0.00021917,2]
[325433931,1714884450160,-500.0,0.00021917,2]
[325433932,1714884450187,-151.30797165,0.00021917,2]
[325433933,1714884450213,-500.0,0.00021917,2]
[325433934,1714884450239,-1331.9,0.00021917,2]
[325433935,1714884450259,-500.0,0.00021917,2]
[325433936,1714884450278,-500.0,0.00021917,2]
[325433937,1714884450297,-501.97207116,0.00021917,2]
[325433938,1714884450483,-500.0,0.00021917,2]
[325433939,1714884450516,-1490.47,0.00021917,2]
[325433940,1714884450536,-40.42307111,0.00021917,2]
[325433985,1714884638174,-150.0,0.00019817,2]
[325433987,1714884638184,-154.69061876,0.00020864,2]
[325433988,1714884638193,-620.00000043,0.00020865,2]
[325433989,1714884638203,-238.53838191,0.00021817,2]
[325433990,1714884638211,-217.17825299,0.00021817,2]
[325433991,1714884638221,-217.17825293,0.00021842,2]
[325433992,1714884638230,-217.17825293,0.00021867,2]
[325433993,1714884638239,-217.17825293,0.00021892,2]
[325433994,1714884638248,-500.0,0.00021916,2]
[325433995,1714884638258,-258.36696438,0.00021916,2]
[325433996,1714884638267,-500.0,0.00021916,2]
[325433997,1714884638276,-217.17825293,0.00021916,2]
[325433998,1714884638285,-175.23255846,0.00021917,2]
[325433999,1714884638295,-500.0,0.00021917,2]
[325434000,1714884638304,-500.0,0.00021917,2]
[325434001,1714884638313,-500.0,0.00021917,2]
[325434002,1714884638322,-500.0,0.00021917,2]
[325434003,1714884638331,-500.0,0.00021917,2]
[325434004,1714884638340,-500.0,0.00021917,2]
[325434005,1714884638349,-500.0,0.00021917,2]
[325434006,1714884638358,-151.0,0.00021917,2]
[325434007,1714884638367,-500.0,0.00021917,2]
[325434008,1714884638376,-500.0,0.00021917,2]
[325434009,1714884638385,-500.0,0.00021917,2]
[325434010,1714884638395,-500.0,0.00021917,2]
[325434011,1714884638404,-500.0,0.00021917,2]
[325434012,1714884638413,-500.0,0.00021917,2]
[325434013,1714884638422,-500.0,0.00021917,2]
[325434014,1714884638430,-500.0,0.00021917,2]
[325434015,1714884638440,-185.32903261,0.00021917,2]
[325434016,1714884638449,-500.0,0.00021917,2]
[325434017,1714884638458,-500.0,0.00021917,2]
[325434018,1714884638467,-500.0,0.00021917,2]
[325434019,1714884638476,-500.0,0.00021917,2]
[325434020,1714884638485,-541.29,0.00021917,2]
[325434021,1714884638494,-500.0,0.00021917,2]
[325434022,1714884638503,-500.0,0.00021917,2]
[325434023,1714884638512,-605.09,0.00021917,2]
[325434024,1714884638522,-500.0,0.00021917,2]
[325434025,1714884638531,-500.0,0.00021917,2]
[325434026,1714884638540,-500.85587384,0.00021917,2]
[325434027,1714884638549,-500.0,0.00021917,2]
[325434028,1714884638558,-500.0,0.00021917,2]
[325434029,1714884638567,-500.0,0.00021917,2]
[325434030,1714884638577,-500.0,0.00021917,2]
[325434031,1714884638586,-510.26782466,0.00021917,2]
[325434032,1714884638596,-500.0,0.00021917,2]
[325434033,1714884638605,-500.0,0.00021917,2]
[325434034,1714884638614,-502.7960853,0.00021917,2]
[325434035,1714884638624,-500.0,0.00021917,2]
[325434036,1714884638634,-500.0,0.00021917,2]
[325434037,1714884638643,-1873.57,0.00021917,2]
[325434038,1714884638652,-500.0,0.00021917,2]
[325434039,1714884638661,-810.57,0.00021917,2]
[325434040,1714884638671,-500.0,0.00021917,2]
[325434041,1714884638680,-624.82,0.00021917,2]
[325434042,1714884638689,-166.24757814,0.00021917,2]
[325434069,1714884640163,-333.75242186,0.00021917,2]
[325434070,1714884640172,-218.30399152,0.00021917,2]
[325434071,1714884640182,-1762.57,0.00021917,2]
[325434072,1714884640191,-500.0,0.00021917,2]
[325434073,1714884640200,-388.39201093,0.00021917,2]
[325434074,1714884640210,-500.0,0.00021917,2]
[325434075,1714884640221,-500.0,0.00021917,2]
[325434076,1714884640230,-1045.94,0.00021917,2]
[325434077,1714884640240,-500.0,0.00021917,2]
[325434078,1714884640250,-589.59,0.00021917,2]
[325434079,1714884640259,-502.46,0.00021917,2]
[325434080,1714884640269,-500.0,0.00021917,2]
[325434081,1714884640278,-471.17562306,0.00021917,2]
[325434082,1714884640287,-500.0,0.00021917,2]
[325434083,1714884640297,-500.0,0.00021917,2]
[325434084,1714884640306,-500.0,0.00021917,2]
[325434085,1714884640316,-500.0,0.00021917,2]
[325434086,1714884640325,-500.0,0.00021917,2]
[325434087,1714884640335,-500.0,0.00021917,2]
[325434088,1714884640344,-500.0,0.00021917,2]
[325434089,1714884640353,-500.0,0.00021917,2]
[325434090,1714884640363,-558.29,0.00021917,2]
[325434091,1714884640372,-500.0,0.00021917,2]
[325434092,1714884640381,-500.0,0.00021917,2]
[325434093,1714884640391,-501.44613825,0.00021917,2]
[325434094,1714884640400,-519.77,0.00021917,2]
[325434095,1714884640409,-572.6,0.00021917,2]
[325434096,1714884640418,-524.65502257,0.00021917,2]
[325434097,1714884640428,-655.01,0.00021917,2]
[325434098,1714884640437,-500.0,0.00021917,2]
[325434099,1714884640447,-500.0,0.00021917,2]
[325434100,1714884640456,-288.03962274,0.00021917,2]
[325434101,1714884640465,-1824.75,0.00021917,2]
[325434102,1714884640475,-500.0,0.00021917,2]
[325434103,1714884640484,-656.12,0.00021917,2]
[325434104,1714884640493,-531.12601285,0.00021917,2]
[325434105,1714884640502,-500.0,0.00021917,2]
[325434106,1714884640512,-500.0,0.00021917,2]
[325434107,1714884640521,-630.39,0.00021917,2]
[325434108,1714884640531,-500.0,0.00021917,2]
[325434109,1714884640542,-500.0,0.00021917,2]
[325434110,1714884640551,-423.7545029,0.00021917,2]
[325434111,1714884640561,-807.52,0.00021917,2]
[325434112,1714884640570,-867.03,0.00021917,2]
[325434113,1714884640579,-500.0,0.00021917,2]
[325434114,1714884640589,-500.0,0.00021917,2]
[325434115,1714884640598,-504.81976075,0.00021917,2]
[325434116,1714884640608,-500.0,0.00021917,2]
[325434117,1714884640617,-500.0,0.00021917,2]
[325434118,1714884640627,-500.0,0.00021917,2]
[325434119,1714884640636,-500.0,0.00021917,2]
[325434120,1714884640646,-500.0,0.00021917,2]
[325434121,1714884640656,-500.0,0.00021917,2]
[325434122,1714884640666,-809.07,0.00021917,2]
[325434123,1714884640675,-500.0,0.00021917,2]
[325434124,1714884640684,-500.0,0.00021917,2]
[325434125,1714884640693,-510.88100298,0.00021917,2]
[325434126,1714884640703,-500.0,0.00021917,2]
[325434127,1714884640712,-536.10658064,0.00021917,2]
[325434128,1714884640725,-500.0,0.00021917,2]
[325434129,1714884640737,-501.2779467,0.00021917,2]
[325434130,1714884640746,-500.0,0.00021917,2]
[325434131,1714884640756,-500.0,0.00021917,2]
[325434132,1714884640766,-500.0,0.00021917,2]
[325434133,1714884640776,-500.0,0.00021917,2]
[325434134,1714884640786,-500.0,0.00021917,2]
[325434135,1714884640797,-500.0,0.00021917,2]
[325434136,1714884640810,-500.0,0.00021917,2]
[325434137,1714884640820,-741.14,0.00021917,2]
[325434138,1714884640829,-500.0,0.00021917,2]
[325434139,1714884640839,-500.0,0.00021917,2]
[325434140,1714884640850,-500.0,0.00021917,2]
[325434141,1714884640860,-500.91771873,0.00021917,2]
[325434142,1714884640869,-500.0,0.00021917,2]
[325434143,1714884640879,-637.13236903,0.00021917,2]
[325434144,1714884640888,-500.0,0.00021917,2]
[325434145,1714884640898,-574.53,0.00021917,2]
[325434146,1714884640907,-500.0,0.00021917,2]
[325434147,1714884640917,-508.82496861,0.00021917,2]
[325434148,1714884640926,-500.0,0.00021917,2]
[325434149,1714884640936,-500.0,0.00021917,2]
[325434150,1714884640945,-517.85,0.00021917,2]
[325434151,1714884640954,-516.37206186,0.00021917,2]
[325434152,1714884640964,-500.0,0.00021917,2]
[325434153,1714884640974,-1502.21,0.00021917,2]
[325434154,1714884640984,-500.0,0.00021917,2]
[325434155,1714884640993,-500.0,0.00021917,2]
[325434156,1714884641003,-597.09238925,0.00021917,2]
[325434157,1714884641012,-500.0,0.00021917,2]
[325434158,1714884641021,-1541.69,0.00021917,2]
[325434159,1714884641031,-500.0,0.00021917,2]
[325434160,1714884641040,-202.78838963,0.00021917,2]
[325434161,1714884641050,-500.0,0.00021917,2]
[325434162,1714884641061,-500.0,0.00021917,2]
[325434163,1714884641071,-503.11343517,0.00021917,2]
[325434164,1714884641081,-502.77637981,0.00021917,2]
[325434165,1714884641091,-500.0,0.00021917,2]
[325434166,1714884641102,-500.0,0.00021917,2]
[325434167,1714884641112,-3357.55,0.00021917,2]
[325434168,1714884641122,-504.70060117,0.00021917,2]
[325434169,1714884641131,-500.0,0.00021917,2]
[325434170,1714884641140,-500.0,0.00021917,2]
[325434171,1714884641149,-611.95362677,0.00021917,2]
[325434172,1714884641158,-500.0,0.00021917,2]
[325434173,1714884641167,-475.80748764,0.00021917,2]
[325434174,1714884641177,-500.0,0.00021917,2]
[325434175,1714884641186,-500.0,0.00021917,2]
[325434176,1714884641196,-507.35249391,0.00021917,2]
[325434177,1714884641205,-500.0,0.00021917,2]
[325434178,1714884641214,-500.0,0.00021917,2]
[325434179,1714884641224,-760.67,0.00021917,2]
[325434180,1714884641233,-500.0,0.00021917,2]
[325434181,1714884641242,-500.0,0.00021917,2]
[325434182,1714884641251,-500.0,0.00021917,2]
[325434183,1714884641260,-344.07855489,0.00021917,2]
[325434184,1714884641269,-500.0,0.00021917,2]
[325434185,1714884641278,-1016.33,0.00021917,2]
[325434186,1714884641287,-500.0,0.00021917,2]
[325434187,1714884641297,-500.0,0.00021917,2]
[325434188,1714884641307,-500.0,0.00021917,2]
[325434189,1714884641316,-500.0,0.00021917,2]
[325434190,1714884641325,-500.0,0.00021917,2]
[325434191,1714884641334,-500.0,0.00021917,2]
[325434192,1714884641343,-500.0,0.00021917,2]
[325434193,1714884641353,-500.0,0.00021917,2]
[325434194,1714884641362,-500.0,0.00021917,2]
[325434195,1714884641371,-500.0,0.00021917,2]
[325434196,1714884641380,-500.0,0.00021917,2]
[325434197,1714884641389,-207.47569175,0.00021917,2]
[325434198,1714884641399,-500.92658037,0.00021917,2]
[325434199,1714884641408,-544.52,0.00021917,2]
[325434200,1714884641417,-768.83,0.00021917,2]
[325434201,1714884641426,-500.0,0.00021917,2]
[325434202,1714884641435,-666.0,0.00021917,2]
[325434203,1714884641444,-500.0,0.00021917,2]
[325434204,1714884641453,-500.0,0.00021917,2]
[325434205,1714884641463,-500.0,0.00021917,2]
[325434206,1714884641472,-241.12277299,0.00021917,2]
[325434207,1714884641482,-595.82007154,0.00021917,2]
[325434208,1714884641491,-500.0,0.00021917,2]
[325434209,1714884641501,-500.0,0.00021917,2]
[325434210,1714884641511,-647.06,0.00021917,2]
[325434211,1714884641522,-1265.51,0.00021917,2]
[325434212,1714884641533,-2683.44,0.00021917,2]
[325434213,1714884641543,-500.0,0.00021917,2]
[325434214,1714884641553,-500.0,0.00021917,2]
[325434215,1714884641563,-500.0,0.00021917,2]
[325434216,1714884641572,-500.0,0.00021917,2]
[325434217,1714884641582,-500.0,0.00021917,2]
[325434218,1714884641593,-817.34,0.00021917,2]
[325434219,1714884641602,-500.0,0.00021917,2]
[325434220,1714884641611,-500.0,0.00021917,2]
[325434221,1714884641620,-500.0,0.00021917,2]
[325434222,1714884641630,-500.0,0.00021917,2]
[325434223,1714884641639,-500.0,0.00021917,2]
[325434224,1714884641650,-500.0,0.00021917,2]
[325434225,1714884641659,-500.0,0.00021917,2]
[325434226,1714884641669,-500.0,0.00021917,2]
[325434227,1714884641679,-500.0,0.00021917,2]
[325434228,1714884641691,-503.38550201,0.00021917,2]
[325434229,1714884641700,-500.0,0.00021917,2]
[325434230,1714884641712,-736.51,0.00021917,2]
[325434231,1714884641722,-502.2392564,0.00021917,2]
[325434232,1714884641732,-1053.03,0.00021917,2]
[325434233,1714884641743,-500.0,0.00021917,2]
[325434234,1714884641752,-514.17348165,0.00021917,2]
[325434235,1714884641761,-500.0,0.00021917,2]
[325434236,1714884641770,-716.27,0.00021917,2]
[325434237,1714884641780,-500.0,0.00021917,2]
[325434238,1714884641788,-406.20359705,0.00021917,2]
[325434239,1714884641803,-510.91288116,0.00021917,2]
[325434240,1714884641813,-877.9,0.00021917,2]
[325434241,1714884641823,-915.2,0.00021917,2]
[325434242,1714884641832,-500.0,0.00021917,2]
[325434243,1714884641843,-500.0,0.00021917,2]
[325434244,1714884641853,-501.72105258,0.00021917,2]
[325434245,1714884641971,-502.71845308,0.00021917,2]
[325434246,1714884641982,-500.0,0.00021917,2]
[325434247,1714884641991,-504.02957092,0.00021917,2]
[325434248,1714884642000,-565.61,0.00021917,2]
[325434249,1714884642010,-500.0,0.00021917,2]
[325434250,1714884642019,-500.0,0.00021917,2]
[325434251,1714884642028,-500.0,0.00021917,2]
[325434252,1714884642037,-607.42903356,0.00021917,2]
[325434253,1714884642047,-1058.68,0.00021917,2]
[325434254,1714884642057,-500.0,0.00021917,2]
[325434255,1714884642066,-500.0,0.00021917,2]
[325434256,1714884642075,-500.0,0.00021917,2]
[325434257,1714884642084,-500.0,0.00021917,2]
[325434258,1714884642094,-500.0,0.00021917,2]
[325434259,1714884642103,-500.0,0.00021917,2]
[325434260,1714884642112,-500.0,0.00021917,2]
[325434261,1714884642122,-500.0,0.00021917,2]
[325434262,1714884642131,-500.0,0.00021917,2]
[325434263,1714884642141,-500.0,0.00021917,2]
[325434264,1714884642150,-500.0,0.00021917,2]
[325434265,1714884642160,-500.0,0.00021917,2]
[325434266,1714884642169,-601.92909261,0.00021917,2]
[325434267,1714884642178,-500.0,0.00021917,2]
[325434268,1714884642187,-500.0,0.00021917,2]
[325434269,1714884642196,-501.82214772,0.00021917,2]
[325434270,1714884642206,-500.0,0.00021917,2]
[325434271,1714884642215,-533.51680516,0.00021917,2]
[325434272,1714884642224,-237.84864523,0.00021917,2]
[325434340,1714884647722,-551.2,0.00021917,2]
[325434341,1714884647732,-503.94583522,0.00021917,2]
[325434342,1714884647742,-500.0,0.00021917,2]
[325434343,1714884647751,-500.0,0.00021917,2]
[325434344,1714884647761,-500.0,0.00021917,2]
[325434345,1714884647771,-1513.26,0.00021917,2]
[325434346,1714884647780,-506.00325263,0.00021917,2]
[325434347,1714884647789,-500.0,0.00021917,2]
[325434348,1714884647798,-500.0,0.00021917,2]
[325434349,1714884647813,-502.05857533,0.00021917,2]
[325434350,1714884647822,-500.0,0.00021917,2]
[325434351,1714884647832,-502.55424754,0.00021917,2]
[325434352,1714884647842,-500.0,0.00021917,2]
[325434353,1714884647854,-500.0,0.00021917,2]
[325434354,1714884647864,-502.63392563,0.00021917,2]
[325434355,1714884647873,-500.0,0.00021917,2]
[325434356,1714884647882,-601.22423561,0.00021917,2]
[325434357,1714884647894,-500.0,0.00021917,2]
[325434358,1714884647906,-500.0,0.00021917,2]
[325434359,1714884647915,-500.0,0.00021917,2]
[325434360,1714884647925,-501.86102461,0.00021917,2]
[325434361,1714884647935,-500.0,0.00021917,2]
[325434362,1714884647946,-879.07,0.00021917,2]
[325434363,1714884647955,-500.0,0.00021917,2]
[325434364,1714884647965,-500.0,0.00021917,2]
[325434365,1714884647974,-500.0,0.00021917,2]
[325434366,1714884647985,-547.81240236,0.00021917,2]
[325434367,1714884647994,-500.0,0.00021917,2]
[325434368,1714884648003,-516.17,0.00021917,2]
[325434369,1714884648013,-500.0,0.00021917,2]
[325434370,1714884648022,-500.0,0.00021917,2]
[325434371,1714884648033,-500.0,0.00021917,2]
[325434372,1714884648042,-500.0,0.00021917,2]
[325434373,1714884648052,-523.1,0.00021917,2]
[325434374,1714884648061,-500.0,0.00021917,2]
[325434375,1714884648070,-500.0,0.00021917,2]
[325434376,1714884648079,-1005.48,0.00021917,2]
[325434377,1714884648089,-102.44762107,0.00021917,2]
[325434379,1714885550143,-500.0,0.00019178,2]
[325434380,1714885550164,-502.11948739,0.00019452,2]
[325434381,1714885550184,-154.69061876,0.0002,2]
[325434382,1714885550206,-150.0,0.00020161,3]
[325434383,1714885550224,-493.0,0.00020648,2]
[325434384,1714885550244,-602.13126,0.00021,2]
[325434385,1714885550263,-13877.46042884,0.00021898,2]
[325434386,1714885550282,-500.0,0.00021916,2]
[325434387,1714885550301,-500.0,0.00021916,2]
[325434388,1714885550320,-276.31902613,0.00021916,2]
[325434389,1714885550339,-500.0,0.00021916,2]
[325434390,1714885550358,-500.0,0.00021916,2]
[325434391,1714885550377,-1489.47674695,0.00021917,2]
[325434392,1714885550397,-500.0,0.00021917,2]
[325434393,1714885550415,-500.0,0.00021917,2]
[325434394,1714885550434,-424.61461233,0.00021917,2]
[325434395,1714885550452,-396.2287058,0.00021917,2]
[325434396,1714885550473,-500.0,0.00021917,2]
[325434397,1714885550493,-500.0,0.00021917,2]
[325434398,1714885550511,-500.0,0.00021917,2]
[325434399,1714885550531,-502.81838207,0.00021917,2]
[325434400,1714885550550,-500.0,0.00021917,2]
[325434401,1714885550569,-300.0,0.00021917,2]
[325434402,1714885550588,-500.0,0.00021917,2]
[325434403,1714885550606,-500.0,0.00021917,2]
[325434404,1714885550625,-348.90209449,0.00021917,2]
[325434405,1714885550645,-512.61350032,0.00021917,2]
[325434406,1714885550664,-500.0,0.00021917,2]
[325434407,1714885550684,-500.0,0.00021917,2]
[325434408,1714885550703,-500.0,0.00021917,2]
[325434409,1714885550721,-500.0,0.00021917,2]
[325434410,1714885550740,-500.0,0.00021917,2]
[325434411,1714885550759,-500.0,0.00021917,2]
[325434412,1714885550777,-500.0,0.00021917,2]
[325434413,1714885550797,-1372.01,0.00021917,2]
[325434414,1714885550815,-1081.17,0.00021917,2]
[325434415,1714885550834,-433.74626547,0.00021917,2]
[325434416,1714885550853,-569.45,0.00021917,2]
[325434417,1714885550872,-530.68625583,0.00021917,2]
[325434418,1714885550892,-500.0,0.00021917,2]
[325434419,1714885550911,-500.0,0.00021917,2]
[325434420,1714885550930,-300.0,0.00021917,2]
[325434421,1714885550948,-500.0,0.00021917,2]
[325434422,1714885550967,-500.0,0.00021917,2]
[325434423,1714885550987,-500.0,0.00021917,2]
[325434424,1714885551006,-500.0,0.00021917,2]
[325434425,1714885551025,-500.0,0.00021917,2]
[325434426,1714885551044,-500.0,0.00021917,2]
[325434427,1714885551063,-500.66663596,0.00021917,2]
[325434428,1714885551081,-500.0,0.00021917,2]
[325434429,1714885551105,-508.34654015,0.00021917,2]
[325434430,1714885551123,-500.0,0.00021917,2]
[325434431,1714885551144,-500.0,0.00021917,2]
[325434432,1714885551163,-500.0,0.00021917,2]
[325434433,1714885551185,-800.9917941,0.00021917,2]
[325434434,1714885551204,-500.0,0.00021917,2]
[325434435,1714885551223,-505.64072089,0.00021917,2]
[325434436,1714885551368,-500.0,0.00021917,2]
[325434437,1714885551388,-500.0,0.00021917,2]
[325434438,1714885551408,-500.0,0.00021917,2]
[325434439,1714885551427,-500.0,0.00021917,2]
[325434440,1714885551447,-500.0,0.00021917,2]
[325434441,1714885551473,-566.14404221,0.00021917,2]
[325434442,1714885551491,-500.0,0.00021917,2]
[325434443,1714885551509,-589.52,0.00021917,2]
[325434444,1714885551527,-510.00003017,0.00021917,2]
[325434445,1714885551547,-500.0,0.00021917,2]
[325434446,1714885551566,-500.0,0.00021917,2]
[325434447,1714885551586,-857.2,0.00021917,2]
[325434448,1714885551611,-500.0,0.00021917,2]
[325434449,1714885551634,-500.0,0.00021917,2]
[325434450,1714885551654,-500.0,0.00021917,2]
[325434451,1714885551677,-500.0,0.00021917,2]
[325434452,1714885551697,-500.0,0.00021917,2]
[325434453,1714885551718,-500.0,0.00021917,2]
[325434454,1714885551737,-500.0,0.00021917,2]
[325434455,1714885551757,-450.43773408,0.00021917,2]
[325434456,1714885551779,-500.0,0.00021917,2]
[325434457,1714885551800,-500.0,0.00021917,2]
[325434458,1714885551820,-500.0,0.00021917,2]
[325434459,1714885551840,-500.0,0.00021917,2]
[325434460,1714885551859,-500.05693844,0.00021917,2]
[325434461,1714885551878,-509.67249177,0.00021917,2]
[325434462,1714885551900,-504.04745102,0.00021917,2]
[325434463,1714885551921,-1813.09,0.00021917,2]
[325434464,1714885551943,-500.0,0.00021917,2]
[325434465,1714885551967,-500.67309903,0.00021917,2]
[325434466,1714885551989,-500.0,0.00021917,2]
[325434467,1714885552011,-500.83731918,0.00021917,2]
[325434468,1714885552034,-500.0,0.00021917,2]
[325434469,1714885552056,-500.0,0.00021917,2]
[325434470,1714885552080,-500.0,0.00021917,2]
[325434471,1714885552103,-500.0,0.00021917,2]
[325434472,1714885552121,-185.40901507,0.00021917,2]
[325434473,1714885552141,-500.0,0.00021917,2]
[325434474,1714885552160,-596.07,0.00021917,2]
[325434475,1714885552180,-776.8,0.00021917,2]
[325434476,1714885552202,-500.0,0.00021917,2]
[325434477,1714885552221,-500.0,0.00021917,2]
[325434478,1714885552239,-501.65764415,0.00021917,2]
[325434479,1714885552258,-500.0,0.00021917,2]
[325434480,1714885552276,-500.0,0.00021917,2]
[325434481,1714885552295,-501.913017,0.00021917,2]
[325434482,1714885552313,-500.0,0.00021917,2]
[325434483,1714885552332,-501.84572363,0.00021917,2]
[325434484,1714885552351,-502.14516212,0.00021917,2]
[325434485,1714885552369,-500.0,0.00021917,2]
[325434486,1714885552389,-500.0,0.00021917,2]
[325434487,1714885552408,-565.03,0.00021917,2]
[325434488,1714885552428,-501.04792088,0.00021917,2]
[325434489,1714885552447,-500.0,0.00021917,2]
[325434490,1714885552469,-518.73,0.00021917,2]
[325434491,1714885552490,-501.30214152,0.00021917,2]
[325434492,1714885552510,-500.0,0.00021917,2]
[325434493,1714885552529,-500.86250946,0.00021917,2]
[325434494,1714885552550,-548.74,0.00021917,2]
[325434495,1714885552569,-500.0,0.00021917,2]
[325434496,1714885552588,-500.0,0.00021917,2]
[325434497,1714885552607,-500.0,0.00021917,2]
[325434498,1714885552626,-628.78,0.00021917,2]
[325434499,1714885552646,-500.0,0.00021917,2]
[325434500,1714885552665,-500.0,0.00021917,2]
[325434501,1714885552684,-151.0,0.00021917,2]
[325434502,1714885552703,-773.88,0.00021917,2]
[325434503,1714885552723,-500.0,0.00021917,2]
[325434504,1714885552742,-500.0,0.00021917,2]
[325434505,1714885552762,-500.0,0.00021917,2]
[325434506,1714885552780,-500.0,0.00021917,2]
[325434507,1714885552800,-505.33808328,0.00021917,2]
[325434508,1714885552819,-261.45114269,0.00021917,2]
[325434672,1714885839345,-150.0,0.00019817,2]
[325434673,1714885839355,-154.69061876,0.00020662,2]
[325434674,1714885839364,-9974.9621514,0.00020663,2]
[325434675,1714885839374,-602.13126,0.00021,2]
[325434676,1714885839383,-602.13126,0.00021083,2]
[325434677,1714885839393,-602.13126,0.00021167,2]
[325434678,1714885839402,-602.13126,0.0002125,2]
[325434679,1714885839411,-602.13126,0.00021333,2]
[325434680,1714885839420,-602.13126,0.00021417,2]
[325434681,1714885839429,-602.13126,0.000215,2]
[325434682,1714885839439,-602.13126,0.00021583,2]
[325434683,1714885839449,-602.13126,0.00021667,2]
[325434684,1714885839458,-602.13126,0.0002175,2]
[325434685,1714885839468,-211.74879666,0.00021817,2]
[325434686,1714885839477,-602.13126,0.00021833,2]
[325434687,1714885839487,-211.74879661,0.00021855,2]
[325434688,1714885839496,-211.74879661,0.00021892,2]
[325434689,1714885839505,-9549.77269447,0.00021909,2]
[325434690,1714885839515,-5000.0,0.00021915,2]
[325434691,1714885839524,-290.5236463,0.00021915,2]
[325434692,1714885839534,-180.2324,0.00021915,2]
[325434693,1714885839543,-1349.27201999,0.00021915,2]
[325434694,1714885839552,-183.30638388,0.00021915,2]
[325434695,1714885839561,-500.0,0.00021915,2]
[325434696,1714885839570,-500.0,0.00021915,2]
[325434697,1714885839579,-500.0,0.00021915,2]
[325434698,1714885839589,-500.0,0.00021915,2]
[325434699,1714885839598,-500.0,0.00021915,2]
[325434700,1714885839607,-500.0,0.00021915,2]
[325434701,1714885839617,-500.0,0.00021915,2]
[325434702,1714885839626,-500.0,0.00021915,2]
[325434703,1714885839635,-500.0,0.00021915,2]
[325434704,1714885839644,-500.0,0.00021915,2]
[325434705,1714885839653,-461.5,0.00021915,2]
[325434706,1714885839662,-500.0,0.00021915,2]
[325434707,1714885839671,-500.0,0.00021915,2]